[Event "Early-Titled-Tuesday-Blitz-November-28-2023"]
[Site "Chess.com"]
[Date "2023.11.28"]
[Round "4"]
[White "Hasangatin_Ramil"]
[Black "Krakozia"]
[Result "0-1"]
[WhiteElo "2700"]
[BlackElo "2959"]
[TimeControl "180+1"]
[EndTime "8:38:13 PST"]
[Termination "Krakozia won on time"]

1. c4 {[%clk 0:03:00.9]} 1... e5 {[%clk 0:02:58]} 2. Nc3 {[%clk 0:02:58.9]} 2...
Nf6 {[%clk 0:02:57.4]} 3. e3 {[%clk 0:02:59]} 3... Nc6 {[%clk 0:02:54]} 4. Nf3
{[%clk 0:02:59.1]} 4... Bb4 {[%clk 0:02:50.1]} 5. Qc2 {[%clk 0:02:58.8]} 5...
Bxc3 {[%clk 0:02:48.5]} 6. Qxc3 {[%clk 0:02:59]} 6... Qe7 {[%clk 0:02:47.9]} 7.
d4 {[%clk 0:02:54.6]} 7... Ne4 {[%clk 0:02:46]} 8. Qd3 {[%clk 0:02:27.1]} 8...
exd4 {[%clk 0:02:43.8]} 9. Nxd4 {[%clk 0:02:25.6]} 9... d6 {[%clk 0:02:43.3]}
10. Be2 {[%clk 0:02:20.5]} 10... O-O {[%clk 0:02:40.8]} 11. O-O {[%clk
0:02:20.1]} 11... Bd7 {[%clk 0:02:40.1]} 12. b3 {[%clk 0:02:18.6]} 12... f5
{[%clk 0:02:36.4]} 13. Bb2 {[%clk 0:02:04.9]} 13... Ne5 {[%clk 0:02:35.4]} 14.
Qd1 {[%clk 0:01:55.7]} 14... a6 {[%clk 0:02:27]} 15. Nf3 {[%clk 0:01:48.4]}
15... Bc6 {[%clk 0:02:18]} 16. Nxe5 {[%clk 0:01:40.8]} 16... dxe5 {[%clk
0:02:16.8]} 17. f3 {[%clk 0:01:41.2]} 17... Nf6 {[%clk 0:01:57.8]} 18. Qc2
{[%clk 0:01:26.5]} 18... Qe6 {[%clk 0:01:47.4]} 19. Qc3 {[%clk 0:01:26]} 19...
Rfe8 {[%clk 0:01:45.5]} 20. Rad1 {[%clk 0:01:24.8]} 20... a5 {[%clk 0:01:42.6]}
21. Rd2 {[%clk 0:01:20.5]} 21... f4 {[%clk 0:01:36]} 22. e4 {[%clk 0:01:10.2]}
22... Bxe4 {[%clk 0:01:30]} 23. fxe4 {[%clk 0:00:59.8]} 23... Nxe4 {[%clk
0:01:30.4]} 24. Qc2 {[%clk 0:00:54.6]} 24... Nxd2 {[%clk 0:01:27.4]} 25. Qxd2
{[%clk 0:00:55.5]} 25... Qb6+ {[%clk 0:01:17.4]} 26. Kh1 {[%clk 0:00:54.6]}
26... Rad8 {[%clk 0:01:17.8]} 27. Qc3 {[%clk 0:00:47.1]} 27... Qb4 {[%clk
0:01:16.4]} 28. Qf3 {[%clk 0:00:36.7]} 28... Qd2 {[%clk 0:01:03.9]} 29. Bc3
{[%clk 0:00:25.9]} 29... e4 {[%clk 0:00:56.6]} 0-1

[Event "Early-Titled-Tuesday-Blitz-November-28-2023"]
[Site "Chess.com"]
[Date "2023.11.28"]
[Round "4"]
[White "WoolworthsManly"]
[Black "DeArron_Fox"]
[Result "1-0"]
[WhiteElo "2691"]
[BlackElo "2478"]
[TimeControl "180+1"]
[EndTime "8:38:21 PST"]
[Termination "WoolworthsManly won by resignation"]

1. e4 {[%clk 0:02:53.4]} 1... c5 {[%clk 0:02:59.3]} 2. Nf3 {[%clk 0:02:51.8]}
2... e6 {[%clk 0:02:59.8]} 3. d4 {[%clk 0:02:50]} 3... cxd4 {[%clk 0:03:00.7]}
4. Nxd4 {[%clk 0:02:50.5]} 4... a6 {[%clk 0:03:00.7]} 5. Nc3 {[%clk 0:02:47]}
5... b5 {[%clk 0:02:53.9]} 6. g3 {[%clk 0:02:44]} 6... Bb7 {[%clk 0:02:54.2]} 7.
Bg2 {[%clk 0:02:44.1]} 7... Nf6 {[%clk 0:02:54.4]} 8. a3 {[%clk 0:02:43.8]} 8...
Qc7 {[%clk 0:02:33.4]} 9. O-O {[%clk 0:02:42.9]} 9... Nc6 {[%clk 0:02:28.6]} 10.
Bf4 {[%clk 0:02:32.1]} 10... e5 {[%clk 0:02:20.6]} 11. Nxc6 {[%clk 0:02:30.9]}
11... exf4 {[%clk 0:02:16.7]} 12. Nd4 {[%clk 0:02:30.6]} 12... fxg3 {[%clk
0:02:04.9]} 13. hxg3 {[%clk 0:02:31.5]} 13... Bc5 {[%clk 0:01:57.4]} 14. e5
{[%clk 0:02:23.4]} 14... Bxg2 {[%clk 0:01:31.4]} 15. Kxg2 {[%clk 0:02:22.5]}
15... Qb7+ {[%clk 0:01:30.9]} 16. Qf3 {[%clk 0:01:40.4]} 16... Qxf3+ {[%clk
0:01:25.6]} 17. Nxf3 {[%clk 0:01:41.3]} 17... Ng4 {[%clk 0:01:23.8]} 18. Ne4
{[%clk 0:01:37.9]} 18... Be7 {[%clk 0:01:06]} 19. Rad1 {[%clk 0:01:37]} 19...
Rc8 {[%clk 0:00:54]} 20. c3 {[%clk 0:01:36.9]} 20... Rc7 {[%clk 0:00:47.2]} 21.
Nd6+ {[%clk 0:01:35.5]} 21... Kf8 {[%clk 0:00:07.4]} 22. Rd4 {[%clk 0:01:27.8]}
22... h5 {[%clk 0:00:06.4]} 23. Rfd1 {[%clk 0:01:27.3]} 23... g6 {[%clk
0:00:04.2]} 24. Rf4 {[%clk 0:01:25.3]} 24... f6 {[%clk 0:00:02.1]} 25. exf6
{[%clk 0:01:19.2]} 25... Nxf6 {[%clk 0:00:03]} 26. Ne4 {[%clk 0:00:52.2]} 26...
Kg7 {[%clk 0:00:02.8]} 27. Ne5 {[%clk 0:00:52.2]} 27... Nxe4 {[%clk 0:00:02.6]}
28. Rf7+ {[%clk 0:00:51.9]} 28... Kh6 {[%clk 0:00:02.2]} 29. Rxe7 {[%clk
0:00:52.2]} 29... Rf8 {[%clk 0:00:02.1]} 30. Nf7+ {[%clk 0:00:49.9]} 30... Kg7
{[%clk 0:00:01.4]} 31. Nd6+ {[%clk 0:00:49.8]} 1-0

[Event "Early-Titled-Tuesday-Blitz-November-28-2023"]
[Site "Chess.com"]
[Date "2023.11.28"]
[Round "4"]
[White "GeorgiosSouleidis"]
[Black "GMJustin"]
[Result "1-0"]
[WhiteElo "2626"]
[BlackElo "2287"]
[TimeControl "180+1"]
[EndTime "8:38:22 PST"]
[Termination "GeorgiosSouleidis won on time"]

1. e4 {[%clk 0:03:00.9]} 1... e5 {[%clk 0:02:47.5]} 2. Nf3 {[%clk 0:03:00]} 2...
Nc6 {[%clk 0:02:47.2]} 3. Bc4 {[%clk 0:03:00.2]} 3... Nf6 {[%clk 0:02:39.4]} 4.
d3 {[%clk 0:03:00.3]} 4... Bc5 {[%clk 0:02:38.4]} 5. a4 {[%clk 0:02:59.8]} 5...
O-O {[%clk 0:02:32]} 6. O-O {[%clk 0:02:59.2]} 6... a5 {[%clk 0:02:22.6]} 7. Be3
{[%clk 0:02:58.3]} 7... Bxe3 {[%clk 0:02:17.1]} 8. fxe3 {[%clk 0:02:59.2]} 8...
d5 {[%clk 0:02:16.7]} 9. exd5 {[%clk 0:02:59.5]} 9... Nxd5 {[%clk 0:02:16.9]}
10. Qe2 {[%clk 0:02:53.6]} 10... Nb6 {[%clk 0:02:04.8]} 11. Bb5 {[%clk
0:02:49.2]} 11... f6 {[%clk 0:01:58.3]} 12. Bxc6 {[%clk 0:02:38.7]} 12... bxc6
{[%clk 0:01:57.3]} 13. e4 {[%clk 0:02:31.9]} 13... Be6 {[%clk 0:01:51.4]} 14. b3
{[%clk 0:02:28.7]} 14... Nd7 {[%clk 0:01:44.7]} 15. Nbd2 {[%clk 0:02:25.2]}
15... Nc5 {[%clk 0:01:37.4]} 16. Qe3 {[%clk 0:02:23.1]} 16... Qd6 {[%clk
0:01:25.8]} 17. Nh4 {[%clk 0:02:14.6]} 17... g6 {[%clk 0:01:21]} 18. Rf2 {[%clk
0:02:05.1]} 18... Rf7 {[%clk 0:01:20.5]} 19. Raf1 {[%clk 0:02:04.9]} 19... Raf8
{[%clk 0:01:19.6]} 20. h3 {[%clk 0:02:04.8]} 20... Qe7 {[%clk 0:01:12.9]} 21.
Qg3 {[%clk 0:02:01.7]} 21... Rg7 {[%clk 0:01:07.7]} 22. Kh2 {[%clk 0:01:56.5]}
22... Rff7 {[%clk 0:00:50.2]} 23. Nhf3 {[%clk 0:01:45.7]} 23... Qd6 {[%clk
0:00:34.7]} 24. Re1 {[%clk 0:01:37.6]} 24... Qe7 {[%clk 0:00:33.9]} 25. Ng1
{[%clk 0:01:35.5]} 25... Qd6 {[%clk 0:00:31.5]} 26. Qe3 {[%clk 0:01:28.8]} 26...
Qe7 {[%clk 0:00:30.1]} 27. Ne2 {[%clk 0:01:28.1]} 27... Qd6 {[%clk 0:00:28.9]}
28. Nc3 {[%clk 0:01:27.8]} 28... Qe7 {[%clk 0:00:16.1]} 29. Nd1 {[%clk
0:01:27.9]} 29... Qd6 {[%clk 0:00:15.1]} 30. Nb2 {[%clk 0:01:28.1]} 30... Qd4
{[%clk 0:00:06.6]} 31. Qxd4 {[%clk 0:01:19.2]} 31... exd4 {[%clk 0:00:06.9]} 32.
Nbc4 {[%clk 0:01:20.1]} 32... Nb7 {[%clk 0:00:05.3]} 33. Ref1 {[%clk 0:01:02.5]}
33... f5 {[%clk 0:00:01.4]} 34. Ne5 {[%clk 0:01:02.8]} 34... Rf6 {[%clk
0:00:01.7]} 35. Nxc6 {[%clk 0:01:03.1]} 35... Bxb3 {[%clk 0:00:01.3]} 36. Nxb3
{[%clk 0:00:57.5]} 1-0

[Event "Early-Titled-Tuesday-Blitz-November-28-2023"]
[Site "Chess.com"]
[Date "2023.11.28"]
[Round "4"]
[White "kuanysh1981"]
[Black "tandercat"]
[Result "1-0"]
[WhiteElo "2440"]
[BlackElo "2073"]
[TimeControl "180+1"]
[EndTime "8:38:24 PST"]
[Termination "kuanysh1981 won on time"]

1. d4 {[%clk 0:02:59.1]} 1... d5 {[%clk 0:02:59.8]} 2. c4 {[%clk 0:02:58.5]}
2... e6 {[%clk 0:03:00]} 3. Nf3 {[%clk 0:02:58.5]} 3... a6 {[%clk 0:03:00.2]} 4.
g3 {[%clk 0:02:58.9]} 4... dxc4 {[%clk 0:02:59.9]} 5. Bg2 {[%clk 0:02:57.9]}
5... Nc6 {[%clk 0:02:59.8]} 6. O-O {[%clk 0:02:46.6]} 6... Rb8 {[%clk
0:02:59.7]} 7. e4 {[%clk 0:02:41.5]} 7... Nf6 {[%clk 0:02:54.5]} 8. Nc3 {[%clk
0:02:41.3]} 8... b5 {[%clk 0:02:49.2]} 9. d5 {[%clk 0:02:40.8]} 9... Nb4 {[%clk
0:02:43]} 10. Bg5 {[%clk 0:02:25.1]} 10... Be7 {[%clk 0:02:38.8]} 11. Ne5 {[%clk
0:02:23.1]} 11... Bb7 {[%clk 0:02:09]} 12. dxe6 {[%clk 0:02:21.9]} 12... fxe6
{[%clk 0:02:06]} 13. Qe2 {[%clk 0:02:17.8]} 13... O-O {[%clk 0:02:01.9]} 14.
Rad1 {[%clk 0:02:14.1]} 14... Qe8 {[%clk 0:01:53.9]} 15. Bxf6 {[%clk 0:02:13.3]}
15... gxf6 {[%clk 0:01:33.5]} 16. Nd7 {[%clk 0:02:11.2]} 16... Rd8 {[%clk
0:01:25.9]} 17. Nxf8 {[%clk 0:02:10.7]} 17... Qxf8 {[%clk 0:01:25.5]} 18. Qg4+
{[%clk 0:02:09.4]} 18... Kh8 {[%clk 0:01:18.3]} 19. Qxe6 {[%clk 0:02:08.8]}
19... Nd3 {[%clk 0:01:09.9]} 20. Rb1 {[%clk 0:01:42]} 20... Bc8 {[%clk
0:01:01.4]} 21. Qc6 {[%clk 0:01:41.6]} 21... Nb4 {[%clk 0:00:59.3]} 22. Qxc7
{[%clk 0:01:36.7]} 22... Bd6 {[%clk 0:00:52]} 23. Qa5 {[%clk 0:01:28.4]} 23...
Nc6 {[%clk 0:00:37]} 24. Qb6 {[%clk 0:01:28.2]} 24... Bd7 {[%clk 0:00:20.5]} 25.
Rbd1 {[%clk 0:01:25.2]} 25... Bc5 {[%clk 0:00:20.4]} 26. Qc7 {[%clk 0:01:25.1]}
26... Ne5 {[%clk 0:00:13]} 27. Nd5 {[%clk 0:01:18.3]} 27... Rc8 {[%clk
0:00:11.5]} 28. Qa5 {[%clk 0:01:15.7]} 28... Nd3 {[%clk 0:00:09.9]} 29. Qxa6
{[%clk 0:01:11.6]} 29... Nxb2 {[%clk 0:00:08.8]} 30. Rb1 {[%clk 0:01:10.6]}
30... Nd3 {[%clk 0:00:06.5]} 31. Nxf6 {[%clk 0:01:08.7]} 31... Ra8 {[%clk
0:00:05.2]} 32. Nxd7 {[%clk 0:01:06.2]} 32... Rxa6 {[%clk 0:00:05.2]} 33. Nxf8
{[%clk 0:01:06.2]} 33... Bxf8 {[%clk 0:00:06.1]} 34. Rxb5 {[%clk 0:01:06]} 34...
Rxa2 {[%clk 0:00:04.5]} 35. e5 {[%clk 0:01:05.5]} 35... Kg7 {[%clk 0:00:02.5]}
36. Bd5 {[%clk 0:01:04.8]} 1-0

[Event "Early-Titled-Tuesday-Blitz-November-28-2023"]
[Site "Chess.com"]
[Date "2023.11.28"]
[Round "4"]
[White "Tsomaia_Nikoloz"]
[Black "PawnEatingZombie"]
[Result "1-0"]
[WhiteElo "2369"]
[BlackElo "2175"]
[TimeControl "180+1"]
[EndTime "8:38:24 PST"]
[Termination "Tsomaia_Nikoloz won by resignation"]

1. e4 {[%clk 0:03:00.5]} 1... e6 {[%clk 0:02:57.9]} 2. d3 {[%clk 0:03:00.2]}
2... d5 {[%clk 0:02:57.7]} 3. Nd2 {[%clk 0:03:01.1]} 3... Nf6 {[%clk 0:02:57]}
4. Ngf3 {[%clk 0:03:01.2]} 4... c5 {[%clk 0:02:57.2]} 5. g3 {[%clk 0:03:01.1]}
5... Nc6 {[%clk 0:02:57.5]} 6. Bg2 {[%clk 0:03:01.6]} 6... Be7 {[%clk
0:02:57.5]} 7. O-O {[%clk 0:03:01.7]} 7... b6 {[%clk 0:02:57.6]} 8. Re1 {[%clk
0:03:01.6]} 8... Bb7 {[%clk 0:02:57.8]} 9. Qe2 {[%clk 0:03:01.6]} 9... Qc7
{[%clk 0:02:55.8]} 10. c3 {[%clk 0:03:01]} 10... h6 {[%clk 0:02:45]} 11. a3
{[%clk 0:03:00.5]} 11... dxe4 {[%clk 0:02:42]} 12. dxe4 {[%clk 0:03:00.4]} 12...
O-O {[%clk 0:02:41]} 13. e5 {[%clk 0:02:56.5]} 13... Nd7 {[%clk 0:02:29.2]} 14.
Nf1 {[%clk 0:02:53.6]} 14... a5 {[%clk 0:02:18.5]} 15. Bf4 {[%clk 0:02:18.5]}
15... Ba6 {[%clk 0:02:17.1]} 16. Qc2 {[%clk 0:02:18.2]} 16... Rac8 {[%clk
0:02:08.2]} 17. h4 {[%clk 0:02:17.1]} 17... b5 {[%clk 0:02:00.1]} 18. N1h2
{[%clk 0:02:16.3]} 18... c4 {[%clk 0:01:59.7]} 19. Ng4 {[%clk 0:02:13.3]} 19...
Nc5 {[%clk 0:01:59.2]} 20. Nxh6+ {[%clk 0:01:45.5]} 20... gxh6 {[%clk
0:01:58.7]} 21. Bxh6 {[%clk 0:01:46.4]} 21... Rfd8 {[%clk 0:01:51.7]} 22. Ng5
{[%clk 0:01:31.4]} 22... Nd3 {[%clk 0:01:44.4]} 23. Re4 {[%clk 0:01:29.1]} 23...
Ncxe5 {[%clk 0:01:30.8]} 24. Rf4 {[%clk 0:01:24]} 24... Bxg5 {[%clk 0:01:26.9]}
25. Bxg5 {[%clk 0:01:13.4]} 25... Nxf4 {[%clk 0:00:34.2]} 26. gxf4 {[%clk
0:01:12.7]} 26... Nd3 {[%clk 0:00:28.8]} 27. Qe2 {[%clk 0:01:11.9]} 27... f5
{[%clk 0:00:18]} 28. Qxe6+ {[%clk 0:00:55.8]} 28... Qf7 {[%clk 0:00:16.5]} 29.
Qxa6 {[%clk 0:00:55]} 29... Nc5 {[%clk 0:00:11.6]} 30. Qxb5 {[%clk 0:00:51.1]}
30... Ne4 {[%clk 0:00:10]} 31. Bxe4 {[%clk 0:00:44.3]} 31... fxe4 {[%clk
0:00:09.6]} 32. Bxd8 {[%clk 0:00:44.2]} 32... Rxd8 {[%clk 0:00:10.2]} 33. Qg5+
{[%clk 0:00:44.4]} 1-0

[Event "Early-Titled-Tuesday-Blitz-November-28-2023"]
[Site "Chess.com"]
[Date "2023.11.28"]
[Round "4"]
[White "TigrVShlyape"]
[Black "Russian_berezka"]
[Result "1-0"]
[WhiteElo "2973"]
[BlackElo "2607"]
[TimeControl "180+1"]
[EndTime "8:38:26 PST"]
[Termination "TigrVShlyape won on time"]

1. d4 {[%clk 0:03:00.9]} 1... Nf6 {[%clk 0:02:59.7]} 2. Bf4 {[%clk 0:02:50.1]}
2... d5 {[%clk 0:02:59.6]} 3. e3 {[%clk 0:02:49.4]} 3... c5 {[%clk 0:03:00.2]}
4. c3 {[%clk 0:02:49]} 4... Nc6 {[%clk 0:02:59.8]} 5. Nd2 {[%clk 0:02:48.7]}
5... e6 {[%clk 0:02:38.4]} 6. Ngf3 {[%clk 0:02:46.4]} 6... Bd6 {[%clk
0:02:38.5]} 7. Bg3 {[%clk 0:02:46]} 7... a5 {[%clk 0:02:38.7]} 8. Bb5 {[%clk
0:02:43.5]} 8... O-O {[%clk 0:02:21.8]} 9. a4 {[%clk 0:02:39.9]} 9... Qc7 {[%clk
0:02:18.1]} 10. dxc5 {[%clk 0:02:34.2]} 10... Bxg3 {[%clk 0:02:17.5]} 11. hxg3
{[%clk 0:02:34.5]} 11... Ne7 {[%clk 0:02:17.6]} 12. b4 {[%clk 0:02:32.9]} 12...
e5 {[%clk 0:02:14.5]} 13. O-O {[%clk 0:02:27.3]} 13... Bg4 {[%clk 0:01:56.9]}
14. Qb3 {[%clk 0:02:16.8]} 14... e4 {[%clk 0:01:44.8]} 15. Nd4 {[%clk
0:02:16.3]} 15... h5 {[%clk 0:01:43.3]} 16. Rfc1 {[%clk 0:02:06.3]} 16... Qe5
{[%clk 0:01:34.1]} 17. c4 {[%clk 0:02:04.5]} 17... axb4 {[%clk 0:01:30.7]} 18.
Qxb4 {[%clk 0:02:03.3]} 18... g6 {[%clk 0:01:24.3]} 19. cxd5 {[%clk 0:01:58.7]}
19... Nexd5 {[%clk 0:01:18.7]} 20. Qb3 {[%clk 0:01:58.1]} 20... Kg7 {[%clk
0:01:16.9]} 21. c6 {[%clk 0:01:43.1]} 21... bxc6 {[%clk 0:01:06.9]} 22. Bxc6
{[%clk 0:01:30.4]} 22... Rab8 {[%clk 0:01:00.7]} 23. Qa3 {[%clk 0:01:18.9]}
23... Rh8 {[%clk 0:00:56.3]} 24. Bxd5 {[%clk 0:01:18.3]} 24... Nxd5 {[%clk
0:00:47.5]} 25. Nc4 {[%clk 0:01:12.2]} 25... Qf6 {[%clk 0:00:39.8]} 26. Qd6
{[%clk 0:01:11.2]} 26... Nb4 {[%clk 0:00:24.6]} 27. Qxf6+ {[%clk 0:01:09.8]}
27... Kxf6 {[%clk 0:00:25.5]} 28. Nd6 {[%clk 0:01:03.2]} 28... Bf5 {[%clk
0:00:13.5]} 29. N6xf5 {[%clk 0:01:00.9]} 29... gxf5 {[%clk 0:00:13.1]} 30. Rc5
{[%clk 0:01:00.9]} 30... Rhc8 {[%clk 0:00:09.8]} 31. Rxf5+ {[%clk 0:00:59.9]}
31... Kg6 {[%clk 0:00:10.6]} 32. Rb5 {[%clk 0:00:59]} 32... Nd3 {[%clk
0:00:04.6]} 33. Rxb8 {[%clk 0:00:58.1]} 33... Rxb8 {[%clk 0:00:05.5]} 34. a5
{[%clk 0:00:58.2]} 34... Rb2 {[%clk 0:00:01.9]} 35. a6 {[%clk 0:00:57.7]} 35...
Nxf2 {[%clk 0:00:01.4]} 36. a7 {[%clk 0:00:56.8]} 1-0

[Event "Early-Titled-Tuesday-Blitz-November-28-2023"]
[Site "Chess.com"]
[Date "2023.11.28"]
[Round "4"]
[White "Wizard_97"]
[Black "Kostukov_Alex"]
[Result "1-0"]
[WhiteElo "2642"]
[BlackElo "2404"]
[TimeControl "180+1"]
[EndTime "8:38:26 PST"]
[Termination "Wizard_97 won on time"]

1. e4 {[%clk 0:03:00.9]} 1... c5 {[%clk 0:02:59.3]} 2. Nf3 {[%clk 0:03:00.7]}
2... g6 {[%clk 0:02:59.5]} 3. d4 {[%clk 0:03:00.6]} 3... cxd4 {[%clk 0:02:59.6]}
4. Nxd4 {[%clk 0:03:01.5]} 4... Bg7 {[%clk 0:02:59.6]} 5. c4 {[%clk 0:03:00.1]}
5... Nc6 {[%clk 0:02:59.8]} 6. Be3 {[%clk 0:02:59.7]} 6... Nf6 {[%clk
0:02:59.8]} 7. Nc3 {[%clk 0:02:58.9]} 7... Nxd4 {[%clk 0:02:59.4]} 8. Bxd4
{[%clk 0:02:57.9]} 8... Qa5 {[%clk 0:03:00]} 9. Bd3 {[%clk 0:02:48.1]} 9... O-O
{[%clk 0:02:57.6]} 10. O-O {[%clk 0:02:47.8]} 10... d6 {[%clk 0:02:57.5]} 11.
Be2 {[%clk 0:02:44.5]} 11... Be6 {[%clk 0:02:54]} 12. b3 {[%clk 0:02:40.8]}
12... Rfc8 {[%clk 0:02:52.8]} 13. f4 {[%clk 0:02:38.9]} 13... b5 {[%clk
0:02:04.3]} 14. f5 {[%clk 0:02:37.5]} 14... b4 {[%clk 0:01:53]} 15. fxe6 {[%clk
0:02:35.9]} 15... bxc3 {[%clk 0:01:52]} 16. exf7+ {[%clk 0:02:36.5]} 16... Kf8
{[%clk 0:01:33]} 17. Qd3 {[%clk 0:02:36.2]} 17... Nd7 {[%clk 0:01:25.5]} 18. Bg4
{[%clk 0:02:23]} 18... Bxd4+ {[%clk 0:01:15.4]} 19. Qxd4 {[%clk 0:02:23.9]}
19... Qc5 {[%clk 0:00:45.4]} 20. Qxc5 {[%clk 0:02:22.3]} 20... Nxc5 {[%clk
0:00:43.4]} 21. Bxc8 {[%clk 0:02:22.1]} 21... Rxc8 {[%clk 0:00:44.3]} 22. Rae1
{[%clk 0:02:02.8]} 22... a5 {[%clk 0:00:19.1]} 23. Re3 {[%clk 0:02:01.6]} 23...
c2 {[%clk 0:00:13]} 24. Rc3 {[%clk 0:01:52.4]} 24... Nxe4 {[%clk 0:00:10.9]} 25.
Rxc2 {[%clk 0:01:52.9]} 25... Nf6 {[%clk 0:00:11.2]} 26. Rcf2 {[%clk 0:01:47.7]}
26... Kxf7 {[%clk 0:00:10.8]} 27. g4 {[%clk 0:01:48.4]} 27... h6 {[%clk
0:00:08.9]} 28. h4 {[%clk 0:01:48.4]} 28... g5 {[%clk 0:00:09.3]} 29. hxg5
{[%clk 0:01:47.9]} 29... hxg5 {[%clk 0:00:10.2]} 30. Kg2 {[%clk 0:01:47.7]}
30... Kg6 {[%clk 0:00:09.6]} 31. Kf3 {[%clk 0:01:47.5]} 31... a4 {[%clk
0:00:08.1]} 32. Re1 {[%clk 0:01:44.5]} 32... e5 {[%clk 0:00:07.3]} 33. Rd2
{[%clk 0:01:43.9]} 33... Rc6 {[%clk 0:00:06.5]} 34. Red1 {[%clk 0:01:41.7]}
34... e4+ {[%clk 0:00:04.7]} 35. Ke3 {[%clk 0:01:40.7]} 35... d5 {[%clk
0:00:05]} 36. cxd5 {[%clk 0:01:40.6]} 36... Rc3+ {[%clk 0:00:05.2]} 37. Kd4
{[%clk 0:01:40.3]} 37... Rg3 {[%clk 0:00:05.3]} 38. d6 {[%clk 0:01:40]} 38...
Rxg4 {[%clk 0:00:05.2]} 39. Ke5 {[%clk 0:01:40.6]} 39... e3 {[%clk 0:00:05.3]}
40. Rd4 {[%clk 0:01:29.8]} 40... e2 {[%clk 0:00:04.6]} 41. Re1 {[%clk
0:01:29.1]} 41... Nd7+ {[%clk 0:00:02.7]} 42. Kd5 {[%clk 0:01:28.7]} 42... Nf6+
{[%clk 0:00:02.4]} 43. Kc5 {[%clk 0:01:27.8]} 43... Ne4+ {[%clk 0:00:01.5]} 44.
Kc6 {[%clk 0:01:28.1]} 1-0

[Event "Early-Titled-Tuesday-Blitz-November-28-2023"]
[Site "Chess.com"]
[Date "2023.11.28"]
[Round "4"]
[White "FairChess_on_YouTube"]
[Black "Alexander_Donchenko"]
[Result "0-1"]
[WhiteElo "3082"]
[BlackElo "2883"]
[TimeControl "180+1"]
[EndTime "8:38:29 PST"]
[Termination "Alexander_Donchenko won by resignation"]

1. d4 {[%clk 0:03:00.9]} 1... Nf6 {[%clk 0:02:57]} 2. c4 {[%clk 0:03:00.8]} 2...
g6 {[%clk 0:02:56.6]} 3. Nc3 {[%clk 0:02:59.7]} 3... Bg7 {[%clk 0:02:57.1]} 4.
e4 {[%clk 0:02:59.7]} 4... d6 {[%clk 0:02:57.7]} 5. h3 {[%clk 0:03:00.1]} 5...
O-O {[%clk 0:02:58.1]} 6. Be3 {[%clk 0:03:00.7]} 6... Nc6 {[%clk 0:02:57.6]} 7.
d5 {[%clk 0:03:00]} 7... Ne5 {[%clk 0:02:57.5]} 8. f4 {[%clk 0:03:00.3]} 8...
Ned7 {[%clk 0:02:57.9]} 9. Bd3 {[%clk 0:03:00.8]} 9... c6 {[%clk 0:02:55.5]} 10.
Nf3 {[%clk 0:03:00.2]} 10... a6 {[%clk 0:02:40.3]} 11. a4 {[%clk 0:02:40.7]}
11... Nc5 {[%clk 0:02:34.6]} 12. Bc2 {[%clk 0:02:33.3]} 12... cxd5 {[%clk
0:02:33.5]} 13. cxd5 {[%clk 0:02:33.1]} 13... b6 {[%clk 0:02:11.3]} 14. b4
{[%clk 0:02:11.3]} 14... Ncd7 {[%clk 0:02:09.8]} 15. Nd4 {[%clk 0:02:01]} 15...
Bb7 {[%clk 0:02:09.7]} 16. Nc6 {[%clk 0:01:51.3]} 16... Qc7 {[%clk 0:02:05]} 17.
Nxe7+ {[%clk 0:01:30.3]} 17... Kh8 {[%clk 0:02:04.7]} 18. Bd4 {[%clk 0:01:30.6]}
18... Nb8 {[%clk 0:01:41.8]} 19. Nc6 {[%clk 0:01:29.9]} 19... Bxc6 {[%clk
0:01:39.1]} 20. dxc6 {[%clk 0:01:30]} 20... Nxc6 {[%clk 0:01:39.8]} 21. Bxf6
{[%clk 0:01:26.5]} 21... Bxf6 {[%clk 0:01:40.7]} 22. Nd5 {[%clk 0:01:27]} 22...
Bh4+ {[%clk 0:01:37.8]} 23. Kf1 {[%clk 0:01:24.6]} 23... Qd8 {[%clk 0:01:32.7]}
24. Qd3 {[%clk 0:01:20.1]} 24... Ne7 {[%clk 0:01:24]} 25. Bb3 {[%clk 0:01:15.1]}
25... Nxd5 {[%clk 0:01:19.2]} 26. Bxd5 {[%clk 0:01:16]} 26... Rc8 {[%clk
0:01:14.2]} 27. g3 {[%clk 0:01:16.3]} 27... Qf6 {[%clk 0:01:00.6]} 28. e5 {[%clk
0:00:34.6]} 28... dxe5 {[%clk 0:01:01.5]} 29. Kg2 {[%clk 0:00:29.8]} 29... e4
{[%clk 0:00:50.7]} 30. Qxe4 {[%clk 0:00:16.4]} 30... Qb2+ {[%clk 0:00:44.2]} 31.
Kf3 {[%clk 0:00:17]} 31... Rc3+ {[%clk 0:00:44.2]} 32. Kg4 {[%clk 0:00:15.9]}
32... f5+ {[%clk 0:00:44.5]} 33. Kxh4 {[%clk 0:00:16.1]} 33... fxe4 {[%clk
0:00:44.1]} 34. Bxe4 {[%clk 0:00:17]} 34... Qe2 {[%clk 0:00:41.4]} 0-1